Cogmind - Beta 16 @@@ ROGUE MODE // 2026.01.24 @ 21:32:52 Player: PE-P51_RE Result: Destroyed by G-34 Mercenary with Small Laser Performance ------------- Evolutions (0) 0 Regions Visited (1) 200 Robots Destroyed (44) 220 Value Destroyed (722) 722 Prototype IDs (0) 0 Alien Tech Used (0) 0 Bonus (0) 0 TOTAL SCORE: 1142 Bonus ------- None Cogmind --------- Core Integrity 0/250 Matter 192/300 Energy 250/250 System Corruption 0% Temperature Cool (6) Movement Treading (160) Location -10/Materials Parts ------- > --- POWER (1) -------- Ion Engine > --- PROPULSION (2) --- Light Treads Light Treads > --- UTILITY (2) ------ Heat Sink Small Storage Unit > --- WEAPON (2) ------- Light Cannon Light Cannon > --- INVENTORY (8) ---- Light Treads Light Treads Aluminum Leg Wheel Wheel Medium Matter Pod (100) Light Assault Rifle Peak State ------------ > --- POWER ------------ Ion Engine > --- PROPULSION ------- Aluminum Leg Aluminum Leg > --- UTILITY ---------- Heat Sink Small Storage Unit > --- WEAPON ----------- Small Laser Light Assault Rifle > --- INVENTORY -------- Ion Engine Light Treads Light Treads Aluminum Leg Wheel Wheel Medium Matter Pod Light Assault Rifle [Rating: 7] Favorites ----------- Power Ion Engine Engine Ion Engine Propulsion Aluminum Leg Treads Light Treads Leg Aluminum Leg Utility Small Storage Unit Device Heat Sink Storage Small Storage Unit Protection Utility Shielding Weapon Light Cannon Energy Gun Small Laser Ballistic Gun Light Assault Rifle Ballistic Cannon Light Cannon Build | -11 -10 ------- Run | Yrd Mat Slots Evolved . | . . Power . | . . Propulsion . | . . Utility . | . . Weapon . | . . Parts Attached 19 | . 19 Power 5 | . 5 Engine 5 | . 5 Core . | . . Reactor . | . . Propulsion 8 | . 8 Treads 2 | . 2 Leg 6 | . 6 Wheel . | . . Hover . | . . Flight . | . . Utility 2 | . 2 Device 1 | . 1 Storage . | . . Processor . | . . Hackware . | . . Protection 1 | . 1 Artifact . | . . Weapon 4 | . 4 Energy Gun . | . . Energy Cannon . | . . Ballistic Gun 2 | . 2 Ballistic Cannon 2 | . 2 Launcher . | . . Special Weapon . | . . Impact Weapon . | . . Slashing Weapon . | . . Piercing Weapon . | . . Special Melee Weapon . | . . Unidentified Prototypes . | . . Parts Lost 3 | . 3 Power 1 | . 1 Propulsion 1 | . 1 Utility . | . . Weapon 1 | . 1 Highest Loss Streak 1 | . 1 To Critical Strikes . | . . Average Backups 7 | 6 7 Power . | 1 . Propulsion 5 | 4 5 Utility . | . . Weapon . | 1 . Tool/Special . | . . Unused Backups 10 | . 10 Power 1 | . 1 Propulsion 5 | . 5 Utility 2 | . 2 Weapon 2 | . 2 Tool/Special . | . . Average Slot Usage (%) 97 | . 97 Engine 13 | . 13 Treads 9 | . 9 Leg 18 | . 18 Device 12 | . 12 Storage 14 | . 14 Energy Gun 8 | . 8 Ballistic Gun 8 | . 8 Ballistic Cannon 10 | . 10 Peak Build Rating 7 | 6 7 Average Rating 6 | 6 6 On Entrance 6 | 6 6 Avg Prop Armor Cover (%) 7 | . 7 Naked Turns . | . . Heaviest Build 17 | 12 17 Greatest Support 40 | 20 40 Greatest Overweight (x) 3 | . 3 Average Overweight (x) . | . . Largest Inventory Capacity 8 | 8 8 Average Capacity 8 | 8 8 Most Carried 8 | 6 8 Average Carried 7 | 6 7 Final Capacity 8 | 8 8 Final Carried 7 | 6 7 Class Distribution -------------------- 93% | Mutant 6% | Scavenger-Mutant Dominant Class ---------------- Mutant | -10/Materials Resources | -11 -10 ----------- Run | Yrd Mat Matter Collected 1219 | 200 1019 Remotely . | . . Salvage Created 1363 | . 1363 Parts 73 | . 73 Haulers Intercepted 2 | . 2 Recyclers Shooed 6 | . 6 Parts Field Recycled . | . . Retrieved Matter . | . . Parts Self-Destructed . | . . Prevented . | . . Parts Restored . | . . Kills | -11 -10 ------- Run | Yrd Mat Combat Hostiles Destroyed 14 | . 14 Guns 13 | . 13 Cannons 1 | . 1 Classes Destroyed 9 | . 9 Worker 12 | . 12 Builder 4 | . 4 Tunneler 2 | . 2 Hauler 2 | . 2 Recycler 5 | . 5 Mechanic 1 | . 1 Operator 2 | . 2 Watcher 2 | . 2 Grunt 14 | . 14 Best Kill Streak 6 | . 6 Combat Bots Only 4 | . 4 Max Kills in Single Turn 1 | . 1 Gunslinging . | . . Exploded . | . . Melee . | . . Uniques/NPCs Destroyed . | . . Combat | -11 -10 -------- Run | Yrd Mat Hostile Shots Fired 114 | . 114 Missed 34 | . 34 Hits 80 | . 80 Projectile 80 | . 80 Damage Taken 1002 | . 1002 Core 252 | . 252 Absorbed by Shields . | . . Regen/Repaired (Parts) 8 | . 8 Core Remaining (%) 100 | 100 . Volleys Fired 322 | . 322 Largest 2 | . 2 Hottest 60 | . 60 Shots Fired 492 | . 492 Gun 364 | . 364 Cannon 128 | . 128 Launcher . | . . Special . | . . Kinetic 385 | . 385 Thermal 107 | . 107 Explosive . | . . Electromagnetic . | . . Robot Hit Streak 18 | . 18 Robot Miss Streak 4 | . 4 Penetration Max . | . . Secondary Targets . | . . Shots Hit Robots 246 | . 246 Core Hits 86 | . 86 Critical Kills . | . . Critical Parts Destroyed 1 | . 1 Critical Strikes 3 | . 3 Destroy 1 | . 1 Blast 2 | . 2 Melee Attacks . | . . Impact . | . . Slashing . | . . Piercing . | . . Sneak Attacks . | . . Combat Hostiles . | . . Follow-up Attacks . | . . Damage Inflicted 2465 | . 2465 Guns 1943 | . 1943 Cannons 501 | . 501 Explosions 5 | . 5 Melee . | . . Ramming 16 | . 16 Kinetic 1663 | . 1663 Thermal 781 | . 781 Explosive . | . . Electromagnetic 5 | . 5 Impact . | . . Slashing . | . . Piercing . | . . Highest Corruption . | . . Average Corruption . | . . Corruption Purged . | . . Corruption Blocked . | . . Overload Shots . | . . Overflow Damage 22 | . 22 Projectiles 22 | . 22 Explosions . | . . Melee . | . . Knockbacks 7 | . 7 Impact . | . . Kinetic 7 | . 7 Secondary . | . . Self-Inflicted Damage 1 | . 1 Shots . | . . Rammed 1 | . 1 Targets Rammed 4 | . 4 Kicked 3 | . 3 Crushed . | . . Highest Temperature 94 | . 94 Average Temperature 21 | . 21 Received Heat Transfer 564 | . 564 Siege Activations . | . . Martial Activations . | . . Shielding Activations . | . . Robots Disrupted . | . . Combat Hostiles . | . . Robots Corrupted . | . . Combat Hostiles . | . . Parts Fried . | . . Impact Corruptions . | . . Robots Melted . | . . Combat Hostiles . | . . Parts Melted 4 | . 4 Heat Transferred 1775 | . 1775 Parts Sabotaged . | . . Parts Stolen . | . . Parts Stripped . | . . Power Chain Reactions . | . . Alert | -11 -10 ------- Run | Yrd Mat Maximum Alert Level . | . . Low Security (%) 100 | 100 100 Level 1 . | . . Level 2 . | . . Level 3 . | . . Level 4 . | . . Level 5 . | . . High Security . | . . Max Security . | . . Peak Influence 115 | . 115 Initial . | . . Average 35 | . 35 Influence Increases 749 | . 749 Destroy 0b10 Robot/C 280 | . 280 Destroy 0b10 Robot/NC 150 | . 150 Destroy Leader 78 | . 78 Successful Hack 8 | . 8 Disable Machine 75 | . 75 Destroy Structure 38 | . 38 Lose Combat Pursuer 120 | . 120 Influence Decreases 636 | . 636 Time Decay 606 | . 606 Lost Part 30 | . 30 Squads Dispatched 4 | . 4 Investigation 2 | . 2 Extermination . | . . Reinforcement 2 | . 2 Assault . | . . Garrison . | . . Intercept . | . . Searches Triggered . | . . Construction Impeded . | . . Haulers Reinforced . | . . Active Scanning Responses . | . . Cargo Convoy Interrupts . | . . Stealth | -11 -10 --------- Run | Yrd Mat Distress Signals 3 | . 3 Communications Jammed . | . . Distress Signals . | . . Times Spotted 43 | . 43 Peak Tracking Total 5 | . 5 Tactical Retreats 6 | . 6 Traps | -11 -10 ------- Run | Yrd Mat Traps Triggered 7 | . 7 Indirectly . | . . Trap Hack Attempts . | . . Triggered . | . . Disarmed . | . . Reprogrammed . | . . Reused . | . . Traps Extracted . | . . Installed . | . . Triggered . | . . Machines | -11 -10 ---------- Run | Yrd Mat Machines Disabled 5 | . 5 Max in Single Turn 2 | . 2 Machines Repaired . | . . Machines Dismantled . | . . Machines Sabotaged . | . . Overloaded Fab Kills . | . . Hacking | -11 -10 --------- Run | Yrd Mat Machines Accessed 8 | . 8 Terminals 6 | . 6 Fabricators . | . . Repair Stations 1 | . 1 Recycling Units 1 | . 1 Scanalyzers . | . . Garrison Access . | . . Total Hacks 20 | . 20 Successful 6 | . 6 Failed 14 | . 14 Catastrophic . | . . Database Lockouts . | . . Manual 17 | . 17 Terminals 16 | . 16 Fabricators . | . . Repair Stations 1 | . 1 Recycling Units 3 | . 3 Scanalyzers . | . . Garrison Access . | . . Terminal Hacks 1 | . 1 Robot Analysis 1 | . 1 Fabricator Hacks . | . . Repair Station Hacks . | . . Recycling Unit Hacks . | . . Scanalyzer . | . . Garrison Access Hacks . | . . Unauthorized Hacks 5 | . 5 Terminals 4 | . 4 Skim 4 | . 4 Fabricators . | . . Repair Stations 1 | . 1 Patch 1 | . 1 Recycling Units . | . . Scanalyzers . | . . Garrison Access . | . . Data Cores Recovered . | . . Used . | . . Hacking Detections 7 | . 7 Full Trace Events . | . . Feedback Events . | . . Feedback Blocked . | . . Robot Schematics Acquired . | . . Robots Built . | . . Authchips . | . . Time . | . . Total Robot Build Rating . | . . Part Schematics Acquired . | . . Parts Built . | . . Authchips . | . . Time . | . . Total Part Build Rating . | . . Part Studies Acquired . | . . Parts Repaired . | . . Time . | . . Parts Recycled . | . . Recycled Matter . | . . Retrieved Matter . | . . Retrieved Components . | . . Parts Scanalyzed . | . . Part Schematics Acquired . | . . Parts Damaged . | . . Bothacking | -11 -10 ------------ Run | Yrd Mat Used RIF Installer . | . . Robots Hacked . | . . Non-combat . | . . Combat . | . . Robot Hacks Applied . | . . Relay Couplers Released . | . . Fabnet Peak Effective % . | . . Robots Rewired . | . . Allies Hacked . | . . Hacks Repelled . | . . Allies | -11 -10 -------- Run | Yrd Mat Total Allies . | . . Largest Group . | . . Highest-Rated Group . | . . Highest-Rated Ally . | . . Total Orders . | . . Ally Attacks . | . . Total Damage . | . . Kills . | . . Allies Corrupted . | . . Allies Melted . | . . Intel | -11 -10 ------- Run | Yrd Mat Active Infowar (turns) . | . . Robot Analysis Total 1 | . 1 Derelict Logs Recovered . | . . Drone Launches . | . . Drone Recoveries . | . . Exploration | -11 -10 ------------- Run | Yrd Mat Turns Passed 2690 | 3 2687 Spaces Moved 1247 | 3 1244 Core 2 | . 2 Treads 392 | . 392 Legs 853 | 3 850 Wheels . | . . Hover . | . . Flight . | . . Fastest Speed 100 | 120 100 Average Speed 132 | 120 132 Slowest Speed 200 | 120 200 Overloaded Moves . | . . Propulsion Burnouts . | . . Robots Hopped . | . . Potential Cave-ins . | . . Cave-ins Triggered . | . . Exploration Rate (%) 46 | 2 90 Regions Visited 1 Branch Regions . Pre-discovered Areas . | . . Known Exits Taken . | . . Unknown Exits Taken 1 | 1 . Scrap Searched . | . . Spaces Dug . | . . Terrain Destroyed 33 | . 33 Melee . | . . Projectile . | . . AOE 33 | . 33 Terrain Rammed . | . . Walls Destroyed . | . . Machines Disabled . | . . Actions | -11 -10 --------- Run | Yrd Mat Total 1833 | 2 1831 Wait 225 | . 225 Move 1246 | 2 1244 Hop . | . . Pick Up 2 | . 2 Fast Attach 12 | . 12 Attach 4 | . 4 Detach . | . . Swap 12 | . 12 Drop 6 | . 6 Fire 322 | . 322 Melee . | . . Ram 1 | . 1 Kick 3 | . 3 Crush . | . . Escape Stasis . | . . Rewire . | . . Trap . | . . Miscellaneous . | . . Route ------- -11/Scrapyard -10/Materials (discovered 3 exits: [*Mat] / [*Min x2]) History --------- Turn | Location | Event 1 | -11/Scrapyard | Discovered new exit (range 1) 4 | -11/Scrapyard | Entered Materials 302 | -10/Materials | Build established: Mutant 506 | -10/Materials | Discovered new exit (range 11) 777 | -10/Materials | Discovered new exit (range 9) 971 | -10/Materials | Core integrity fell below 50% 1077 | -10/Materials | Core integrity fell below 20% 2323 | -10/Materials | Discovered new exit (range 13) 2691 | -10/Materials | Destroyed by G-34 Mercenary with Small Laser Last Messages --------------- 02511_ Acquired 1 matter. 02529_ R-06 Scavenger collects Wheel. 02540_ Atomic Centrifuge disabled. 02581_ K-01 Serf collects debris. 02593_ Connecting with Repair Station... >>Force(Patch) PATCHED[Heat Sink] PATCHED[Lgt. Cannon] 02593_ ALERT: Suspicious activity at Repair Station M001. Dispatching Investigation squad. 02607_ Destroyed Welding Torch. 02607_ U-05 Engineer knocked back. 02616_ U-05 Engineer destroyed. 02616_ TF Node disabled. 02616_ Sensor Array tumbles out of TF Node. 02616_ Signal Interpreter tumbles out of TF Node. 02621_ Acquired 7 matter. 02622_ Acquired 1 matter. 02625_ Acquired 4 matter. 02684_ G-34 Mercenary destroyed. Map ----- +----------------------------------------------------+ | | | | | | | | | | | ????????????????????????????? | | ????????????????????????????? | | ????????????????????????????? | | ????????????????????????????? | | ??????????????????########### | | ??????????????????# | | ?????????#####????# | | ???####### #????# "" | | ???# ########## "T | | ???# ##### # # "" | | ???# #???## ## # | | ???# #????# ## # | | ???# #????# ## # | | ???# #????# ## """ + | | ???# #????# ## """"" # | | ???# #????# ## """"" ### | | ???# #????# ## """"" #?# | | ???# #????# ## """ #?# | | ???# #???## ###########?# ### | | ####/##### ############ # | | # @/ g %% %+ | | # #####!! #########+## #%" | | # #???## ##???# # # " | | # ###### #????#""" # ### | | # + #????#"R #+### | | #!!= # #????#""" [# | | #!== # #????#""" # | | #!= # ###??# # | | # # #####+##### ! | | ###### # [ #??#% | | ?????# / #??# | | ?????# # #??#% | | ?????# # #??#% | | ?????# # #??# | | ?????# # #??#+### | | ????## ########??#%#T# | | ????# ########### | | ????# # ## | | ????# # =##% == | | ????# # ##= = | | ????# # # =! | | ????# ! # + ! | | ????# !%| # # ! | | ????# # # = " | | ????# # # Y | +----------------------------------------------------+ Best States ------------- Heat Dissipation 35 Energy Generation 10 Energy Capacity 250 Matter Stores 300 Matter Capacity 300 Sight Range 16 Terrain Scan Density 10 Utility Shielding 33 Evasion (%) 55 Recoil Reduction 2 Item Schematics ----------------- None Robot Schematics ------------------ None Fabricated ------------ Nothing Repaired ---------- Nothing Studied --------- None Alien Tech Used ----------------- None Achievements -------------- None Challenges ------------ None Game ------ Seed WaveScrapoidAxe Manual? 0 Play Time 00:14:12 Cumulative 330.6 hours Start 2026.01.24 @ 21:19:49 End 2026.01.24 @ 21:32:52 Sessions 1 Manual Loads 0 Difficulty Rogue Special Mode None Game No. 404 Rogue 402 Adventurer 2 Explorer 0 Win Type - Total 4 Types 2/0/0/1/1/0/0/0/0/0 Lore% 80 Gallery% 70 Achievement% 62 Wizard Run 0 Options --------- Layout 0 ASCII 0 Keyboard 0 Movement Numpad Keybinds 0 Fullscreen 2 Font 24/Smallcaps Map View 76x50 Zoom Use 0% Tactical HUD 1 Map Filters NONE Filters NONE Steam 1 RUN: 703e560a-31a4-4971-a47b-221e8ec54efd